fUST/lending_fUST_20250626
["ID","MTS","AMOUNT","RATE_DAILY","PERIOD"]
[367824011,1750936258841,-495.95,0.00019726,2]
[367824012,1750936258850,-460.0,0.00019726,2]
[367824013,1750936258860,-506.76,0.00019726,2]
[367824014,1750936258869,-660.59,0.00019726,2]
[367824015,1750936258878,-460.0,0.00019726,2]
[367824016,1750936258887,-604.08,0.00019726,2]
[367824017,1750936258897,-2008.32,0.00019726,2]
[367824018,1750936258907,-461.68,0.00019726,2]
[367824019,1750936258916,-2634.32,0.00019726,2]
[367824020,1750936258926,-936.25,0.00019726,2]
[367824021,1750936258935,-1291.06,0.00019726,2]
[367824022,1750936258946,-461.71,0.00019726,2]
[367824023,1750936258956,-460.0,0.00019726,2]
[367824024,1750936258966,-982.95,0.00019726,2]
[367824025,1750936258975,-460.0,0.00019726,2]
[367824026,1750936258985,-460.0,0.00019726,2]
[367824027,1750936258995,-460.0,0.00019726,2]
[367824028,1750936259004,-1441.22,0.00019726,2]
[367824029,1750936259015,-460.0,0.00019726,2]
[367824030,1750936259025,-460.0,0.00019726,2]
[367824031,1750936259035,-1583.9,0.00019726,2]
[367824032,1750936259044,-1308.06,0.00019726,2]
[367824033,1750936259053,-1242.42,0.00019726,2]
[367824034,1750936259063,-630.68,0.00019726,2]
[367824035,1750936259072,-460.0,0.00019726,2]
[367824036,1750936259082,-460.0,0.00019726,2]
[367824037,1750936259092,-989.78,0.00019726,2]
[367824038,1750936259101,-477.7,0.00019726,2]
[367824039,1750936259111,-531.49,0.00019726,2]
[367824040,1750936259120,-460.0,0.00019726,2]
[367824041,1750936259130,-460.0,0.00019726,2]
[367824042,1750936259139,-460.0,0.00019726,2]
[367824043,1750936259149,-2974.27,0.00019726,2]
[367824044,1750936259158,-460.0,0.00019726,2]
[367824045,1750936259168,-479.01,0.00019726,2]
[367824046,1750936259178,-922.68,0.00019726,2]
[367824047,1750936259188,-1630.67,0.00019726,2]
[367824048,1750936259197,-497.3,0.00019726,2]
[367824049,1750936259207,-481.52350909,0.00019726,2]
[367824050,1750936259217,-694.28,0.00019726,2]
[367824051,1750936259227,-460.0,0.00019726,2]
[367824052,1750936259237,-489.26,0.00019726,2]
[367824053,1750936259250,-640.74,0.00019726,2]
[367824054,1750936259260,-1849.57,0.00019726,2]
[367824055,1750936259270,-1090.54,0.00019726,2]
[367824056,1750936259318,-460.0,0.00019726,2]
[367824057,1750936259329,-432.68116936,0.00019755,2]
[367824058,1750936259338,-302.574,0.00019792,2]
[367824059,1750936259348,-448.69037263,0.0001981,2]
[367824060,1750936259357,-2004.58161438,0.00019831,2]
[367824061,1750936259367,-465.29191642,0.00019865,2]
[367824062,1750936259376,-1000.0,0.00019898,2]
[367824063,1750936259385,-519.50602433,0.00019898,2]
[367824064,1750936259395,-1000.0,0.00019918,2]
[367824065,1750936259405,-482.50771733,0.0001992,2]
[367824066,1750936259414,-1000.0,0.00019957,2]
[367824067,1750936259424,-500.36050287,0.00019975,2]
[367824068,1750936259435,-151.26899683,0.0001999,2]
[367824069,1750936259444,-460.0,0.0002,2]
[367824070,1750936259454,-476.93,0.0002,2]
[367824071,1750936259463,-460.0,0.0002,2]
[367824072,1750936259473,-460.0,0.0002,2]
[367824073,1750936259482,-270.30219787,0.0002,2]
[367824074,1750936259491,-460.0,0.0002,2]
[367824075,1750936259500,-597.38,0.0002,2]
[367824076,1750936259510,-460.0,0.0002,2]
[367824077,1750936259519,-3070.64,0.0002,2]
[367824078,1750936259529,-463.0,0.0002,2]
[367824079,1750936259539,-460.0,0.0002,2]
[367824080,1750936259549,-1127.46,0.0002,2]
[367824081,1750936259562,-500.1,0.0002,2]
[367824082,1750936259572,-460.0,0.0002,2]
[367824083,1750936259582,-486.34,0.0002,2]
[367824084,1750936259592,-460.0,0.0002,2]
[367824085,1750936259601,-502.15,0.0002,2]
[367824086,1750936259611,-741.01,0.0002,2]
[367824087,1750936259621,-585.48,0.0002,2]
[367824088,1750936259630,-460.0,0.0002,2]
[367824089,1750936259641,-460.0,0.0002,2]
[367824090,1750936259652,-1171.0,0.0002,2]
[367824091,1750936259663,-1274.93,0.0002,2]
[367824092,1750936259672,-460.0,0.0002,2]
[367824093,1750936259683,-1936.68,0.0002,2]
[367824094,1750936259695,-460.0,0.0002,2]
[367824095,1750936259705,-658.14,0.0002,2]
[367824096,1750936259714,-495.95,0.0002,2]
[367824097,1750936259724,-460.0,0.0002,2]
[367824098,1750936259736,-506.76,0.0002,2]
[367824099,1750936259747,-660.59,0.0002,2]
[367824100,1750936259757,-460.0,0.0002,2]
[367824101,1750936259766,-604.08,0.0002,2]
[367824102,1750936259776,-2008.32,0.0002,2]
[367824103,1750936259786,-461.68,0.0002,2]
[367824104,1750936259796,-2634.32,0.0002,2]
[367824105,1750936259805,-936.25,0.0002,2]
[367824106,1750936259814,-1291.06,0.0002,2]
[367824107,1750936259824,-461.71,0.0002,2]
[367824108,1750936259833,-460.0,0.0002,2]
[367824109,1750936259843,-982.95,0.0002,2]
[367824110,1750936259852,-460.0,0.0002,2]
[367824111,1750936259861,-460.0,0.0002,2]
[367824112,1750936259870,-460.0,0.0002,2]
[367824113,1750936259879,-1441.22,0.0002,2]
[367824114,1750936259889,-460.0,0.0002,2]
[367824115,1750936259898,-460.0,0.0002,2]
[367824116,1750936259907,-1583.9,0.0002,2]
[367824117,1750936259916,-1242.42,0.0002,2]
[367824118,1750936259925,-1308.06,0.0002,2]
[367824119,1750936259934,-630.68,0.0002,2]
[367824120,1750936259945,-460.0,0.0002,2]
[367824121,1750936259954,-460.0,0.0002,2]
[367824122,1750936259964,-989.78,0.0002,2]
[367824123,1750936259973,-531.49,0.0002,2]
[367824124,1750936259982,-460.0,0.0002,2]
[367824125,1750936259991,-460.0,0.0002,2]
[367824126,1750936260000,-151.577273,0.0002,2]
[367824127,1750936260009,-460.0,0.0002,2]
[367824128,1750936260019,-2974.27,0.0002,2]
[367824129,1750936260029,-460.0,0.0002,2]
[367824130,1750936260038,-151.0,0.0002,2]
[367824131,1750936260047,-479.01,0.0002,2]
[367824132,1750936260056,-922.68,0.0002,2]
[367824133,1750936260066,-497.3,0.0002,2]
[367824134,1750936260075,-233.259426,0.0002,2]
[367824135,1750936260085,-1630.67,0.0002,2]
[367824136,1750936260094,-694.28,0.0002,2]
[367824137,1750936260103,-460.0,0.0002,2]
[367824138,1750936260113,-151.0,0.0002,2]
[367824139,1750936260123,-489.26,0.0002,2]
[367824140,1750936260134,-151.0,0.0002,2]
[367824141,1750936260144,-151.0,0.0002,2]
[367824142,1750936260154,-640.74,0.0002,2]
[367824143,1750936260163,-1849.57,0.0002,2]
[367824144,1750936260174,-1090.54,0.0002,2]
[367824145,1750936260184,-460.0,0.0002,2]
[367824146,1750936260194,-518.87384147,0.0002003,2]
[367824147,1750936260203,-168.0,0.00020071,2]
[367824148,1750936260212,-2004.58161438,0.00020072,2]
[367824149,1750936260222,-153.0,0.00020082,2]
[367824150,1750936260231,-153.0,0.00020082,2]
[367824151,1750936260242,-153.0,0.00020082,2]
[367824152,1750936260252,-538.07217361,0.00020085,2]
[367824153,1750936260261,-5000.0,0.00020138,2]
[367824154,1750936260271,-25000.0,0.00020138,2]
[367824155,1750936260281,-160.723469,0.00020187,2]
[367824156,1750936260290,-177.4452169,0.00020218,2]
[367824157,1750936260300,-159.2154015,0.00020218,2]
[367824158,1750936260309,-177.4452169,0.00020218,2]
[367824159,1750936260319,-159.2154015,0.00020218,2]
[367824160,1750936260328,-177.4452169,0.00020218,2]
[367824161,1750936260338,-159.2154015,0.00020218,2]
[367824162,1750936260347,-1149.6055855,0.00020232,2]
[367824163,1750936260356,-1149.8955254,0.00020232,2]
[367824164,1750936260366,-168.0,0.00020253,2]
[367824165,1750936260375,-476.93,0.00020273,2]
[367824166,1750936260384,-460.0,0.00020273,2]
[367824167,1750936260393,-460.0,0.00020273,2]
[367824168,1750936260402,-415.06,0.00020273,2]
[367824169,1750936260412,-597.38,0.00020273,2]
[367824170,1750936260421,-460.0,0.00020273,2]
[367824171,1750936260430,-463.0,0.00020273,2]
[367824172,1750936260439,-3070.64,0.00020273,2]
[367824173,1750936260448,-460.0,0.00020273,2]
[367824174,1750936260458,-1127.46,0.00020273,2]
[367824175,1750936260469,-500.1,0.00020273,2]
[367824176,1750936260478,-460.0,0.00020273,2]
[367824177,1750936260487,-486.34,0.00020273,2]
[367824178,1750936260496,-151.0,0.00020273,2]
[367824179,1750936260505,-356.33013205,0.00020273,2]
[367824180,1750936260514,-502.15,0.00020273,2]
[367824181,1750936260523,-741.01,0.00020273,2]
[367824182,1750936260533,-585.48,0.00020273,2]
[367824183,1750936260542,-295.71004643,0.00020273,2]
[367824184,1750936260551,-460.0,0.00020273,2]
[367824185,1750936260560,-1171.0,0.00020273,2]
[367824186,1750936260570,-460.0,0.00020273,2]
[367824187,1750936260579,-1274.93,0.00020273,2]
[367824188,1750936260589,-1936.68,0.00020273,2]
[367824189,1750936260598,-460.0,0.00020273,2]
[367824190,1750936260606,-658.14,0.00020273,2]
[367824191,1750936260615,-495.95,0.00020273,2]
[367824192,1750936260624,-460.0,0.00020273,2]
[367824193,1750936260633,-151.0,0.00020273,2]
[367824194,1750936260642,-506.76,0.00020273,2]
[367824195,1750936260651,-660.59,0.00020273,2]
[367824196,1750936260661,-151.0,0.00020273,2]
[367824197,1750936260670,-151.0,0.00020273,2]
[367824198,1750936260679,-460.0,0.00020273,2]
[367824199,1750936260688,-604.08,0.00020273,2]
[367824200,1750936260697,-2008.32,0.00020273,2]
[367824201,1750936260706,-151.0,0.00020273,2]
[367824202,1750936260715,-461.68,0.00020273,2]
[367824203,1750936260724,-2634.32,0.00020273,2]
[367824204,1750936260734,-936.25,0.00020273,2]
[367824205,1750936260743,-1291.06,0.00020273,2]
[367824206,1750936260754,-461.71,0.00020273,2]
[367824207,1750936260765,-460.0,0.00020273,2]
[367824208,1750936260774,-982.95,0.00020273,2]
[367824209,1750936260783,-460.0,0.00020273,2]
[367824210,1750936260792,-460.0,0.00020273,2]
[367824211,1750936260802,-460.0,0.00020273,2]
[367824212,1750936260812,-1441.22,0.00020273,2]
[367824213,1750936260821,-460.0,0.00020273,2]
[367824214,1750936260831,-460.0,0.00020273,2]
[367824215,1750936260840,-1583.9,0.00020273,2]
[367824216,1750936260850,-1242.42,0.00020273,2]
[367824217,1750936260859,-1308.06,0.00020273,2]
[367824218,1750936260869,-630.68,0.00020273,2]
[367824219,1750936260879,-460.0,0.00020273,2]
[367824220,1750936260888,-151.0,0.00020273,2]
[367824221,1750936260897,-460.0,0.00020273,2]
[367824222,1750936260907,-989.78,0.00020273,2]
[367824223,1750936260916,-531.49,0.00020273,2]
[367824224,1750936260925,-151.0,0.00020273,2]
[367824225,1750936260934,-460.0,0.00020273,2]
[367824226,1750936260943,-460.0,0.00020273,2]
[367824227,1750936260952,-2974.27,0.00020273,2]
[367824228,1750936260962,-210.41,0.00020273,2]
[367824229,1750936260971,-479.01,0.00020273,2]
[367824230,1750936260980,-922.68,0.00020273,2]
[367824231,1750936260989,-497.3,0.00020273,2]
[367824232,1750936260999,-1630.67,0.00020273,2]
[367824233,1750936261008,-151.0,0.00020273,2]
[367824234,1750936261018,-694.28,0.00020273,2]
[367824235,1750936261027,-460.0,0.00020273,2]
[367824236,1750936261037,-489.26,0.00020273,2]
[367824237,1750936261047,-640.74,0.00020273,2]
[367824238,1750936261057,-1849.57,0.00020273,2]
[367824239,1750936261066,-692.55220437,0.00020273,2]
[367824240,1750936261257,-397.98779563,0.00020273,2]
[367824241,1750936261268,-76.32325518,0.00020273,2]
[367824242,1750936261280,-383.67674482,0.00020273,2]
[367824243,1750936261291,-145.22034636,0.00020314,3]
[367824244,1750936261303,-1020.0,0.00020314,3]
[367824245,1750936262095,-349.93587836,0.00016438,2]
[367824246,1750936262150,-110.06412164,0.00016438,2]
[367824247,1750936262160,-460.0,0.00016438,2]
[367824248,1750936262169,-460.0,0.00016438,2]
[367824249,1750936262179,-514.8074049,0.00016438,2]
[367824250,1750936262188,-460.0,0.00016438,2]
[367824251,1750936262198,-460.0,0.00016438,2]
[367824252,1750936262208,-233.98159886,0.00016438,2]
[367824254,1750936692216,173.497975,0.00013699,2]
[367824256,1750936937937,7888.92,0.00025007,60]
[367824257,1750936975920,107475.43,0.00025018,60]
[367824258,1750937080982,-163.4741394,0.00025018,30]
[367824259,1750937081006,-747.07052356,0.00025018,32]
[367824260,1750937081029,-168.66091166,0.00025018,30]
[367824261,1750937081052,-2000.0,0.00025018,30]
[367824262,1750937081074,-2000.0,0.00025018,30]
[367824263,1750937081097,-2000.0,0.00025018,30]
[367824264,1750937081120,-2000.0,0.00025018,30]
[367824265,1750937081142,-2000.0,0.00025018,30]
[367824266,1750937081164,-2000.0,0.00025018,30]
[367824267,1750937081186,-2000.0,0.00025018,30]
[367824268,1750937081210,-2000.0,0.00025018,30]
[367824269,1750937081232,-2000.0,0.00025018,30]
[367824270,1750937081255,-2000.0,0.00025018,30]
[367824271,1750937081285,-2465.9214785,0.00025018,35]
[367824272,1750937081311,-23000.56938977,0.00025018,30]
[367824273,1750937081336,-593.9932328,0.00025018,30]
[367824274,1750937081358,-694.17306712,0.00025018,30]
[367824275,1750937081382,-400.68978893,0.00025018,30]
[367824276,1750937081404,-509.66656051,0.00025018,30]
[367824277,1750937081427,-609.79809025,0.00025018,35]
[367824278,1750937081450,-5000.0,0.00025018,34]
[367824279,1750937081473,-675.23535565,0.00025018,35]
[367824280,1750937081496,-1197.0,0.00025018,32]
[367824281,1750937081519,-1000.0,0.00025018,30]
[367824282,1750937081542,-1000.0,0.00025018,30]
[367824283,1750937081566,-1000.0,0.00025018,30]
[367824284,1750937081588,-1000.0,0.00025018,30]
[367824285,1750937081611,-1000.0,0.00025018,30]
[367824286,1750937081634,-1360.505414,0.00025018,30]
[367824287,1750937081657,-522.399999,0.00025018,30]
[367824288,1750937081680,-522.399999,0.00025018,30]
[367824289,1750937106744,-1946.02,0.000239,31]
[367824290,1750937106774,-1946.02,0.000239,31]
[367824291,1750937106802,-1946.02,0.000239,31]
[367824292,1750937106830,-1946.02,0.000239,31]
[367824293,1750937106860,-1946.02,0.000239,31]
[367824294,1750937106890,-1946.02,0.000239,31]
[367824295,1750937106919,-1946.02,0.000239,31]
[367824296,1750937106948,-1946.02,0.000239,31]
[367824297,1750937106978,-1946.02,0.000239,31]
[367824298,1750937107006,-1946.02,0.000239,31]
[367824299,1750937107035,-1946.02,0.000239,31]
[367824300,1750937107062,-1946.02,0.000239,31]
[367824301,1750937107089,-1946.02,0.000239,31]
[367824302,1750937107116,-1946.02,0.000239,31]
[367824303,1750937107142,-1946.02,0.000239,31]
[367824304,1750937107167,-1946.02,0.000239,31]
[367824305,1750937107195,-8700.0,0.00024,30]
[367824306,1750937107220,-12558.06783089,0.00024,30]
[367824307,1750937107248,-846.92323443,0.00024,30]
[367824308,1750937107274,-213.72380786,0.00024,30]
[367824309,1750937107300,-12560.17507789,0.00024,30]
[367824310,1750937107324,-524.25751634,0.00024,30]
[367824311,1750937107353,-290.89,0.000245,30]
[367824312,1750937107383,-1946.02,0.000246,31]
[367824313,1750937107416,-1946.02,0.000246,31]
[367824314,1750937107460,-1946.02,0.000246,31]
[367824315,1750937107499,-1946.02,0.000246,31]
[367824316,1750937107554,-1946.02,0.000246,31]
[367824317,1750937107595,-1946.02,0.000246,31]
[367824318,1750937107632,-1946.02,0.000246,31]
[367824319,1750937107672,-1946.02,0.000246,31]
[367824320,1750937107712,-1946.02,0.000246,31]
[367824321,1750937107761,-1946.02,0.000246,31]
[367824322,1750937107795,-1946.02,0.000246,31]
[367824323,1750937107833,-1946.02,0.000246,31]
[367824324,1750937107867,-1946.02,0.000246,31]
[367824325,1750937107911,-1946.02,0.000246,31]
[367824326,1750937107949,-1946.02,0.000246,31]
[367824327,1750937107976,-1946.02,0.000246,31]
[367824328,1750937108003,-1946.02,0.000246,31]
[367824329,1750937108039,-1946.02,0.000246,31]
[367824330,1750937108069,-1946.02,0.000246,31]
[367824331,1750937108096,-1946.02,0.000246,31]
[367824332,1750937108123,-1946.02,0.000246,31]
[367824333,1750937108150,-1946.02,0.000246,31]
[367824334,1750937108177,-1946.02,0.000246,31]
[367824335,1750937108204,-1946.02,0.000246,31]
[367824336,1750937108228,-382.59,0.0002465,30]
[367824337,1750937108253,-224.62,0.0002465,60]
[367824338,1750937108287,-1658.5868207,0.00024658,120]
[367824339,1750937108311,-50688.88117876,0.00024662,120]
[367824340,1750937108337,-200.0,0.00024896,120]
[367824341,1750937108365,-155.56381798,0.00024972,60]
[367824342,1750937108389,-755.65749308,0.0002499,30]
[367824343,1750937108414,-1239745.01184855,0.0002499,30]
[367824344,1750937108439,-153.0,0.00025,120]
[367824345,1750937108464,-16797.27534035,0.00025,30]
[367824346,1750937108489,-296.72953933,0.00025,120]
[367824347,1750937108521,-4306.92523848,0.00025,120]
[367824348,1750937108545,-160.0,0.00025,30]
[367824349,1750937108570,-161.66195829,0.00025,60]
[367824350,1750937108594,-479.97821524,0.00025,30]
[367824351,1750937108618,-206.0,0.00025,120]
[367824352,1750937108642,-2200.0,0.00025,60]
[367824353,1750937108666,-425.22527846,0.00025,30]
[367824354,1750937108689,-160.0,0.00025,30]
[367824355,1750937108712,-160.0,0.00025,30]
[367824356,1750937108734,-160.0,0.00025,30]
[367824357,1750937108762,-160.0,0.00025,30]
[367824358,1750937108786,-155.0,0.00025,120]
[367824359,1750937108809,-230.24506774,0.00025,30]
[367824360,1750937108832,-230.24506774,0.00025,30]
[367824361,1750937108857,-846.92323443,0.00025,30]
[367824362,1750937108881,-213.72380786,0.00025,120]
[367824363,1750937108904,-213.72380786,0.00025,30]
[367824364,1750937108926,-160.0,0.00025,30]
[367824365,1750937108950,-160.0,0.00025,30]
[367824366,1750937108975,-836.92866116,0.00025,30]
[367824367,1750937108998,-836.92866116,0.00025,30]
[367824368,1750937109025,-425.22527846,0.00025,30]
[367824369,1750937109048,-425.22527846,0.00025,30]
[367824370,1750937109084,-160.0,0.00025,30]
[367824371,1750937109109,-160.0,0.00025,30]
[367824372,1750937109132,-160.0,0.00025,30]
[367824373,1750937109159,-524.25751634,0.00025,120]
[367824374,1750937109184,-524.25751634,0.00025,30]
[367824375,1750937109208,-160.0,0.00025,30]
[367824376,1750937109232,-160.0,0.00025,30]
[367824377,1750937109273,-155.0,0.00025018,30]
[367824378,1750937109298,-45352.08231038,0.00025025,60]
[367824379,1750937109321,-36525.93184539,0.00025027,60]
[367824380,1750937109345,-500.56,0.00025041,60]
[367824381,1750937109371,-201.24376207,0.0002517,60]
[367824382,1750937109401,-1946.02,0.000252,31]
[367824383,1750937109432,-1946.02,0.000252,31]
[367824384,1750937109463,-1946.02,0.000252,31]
[367824385,1750937109493,-1946.02,0.000252,31]
[367824386,1750937109524,-1946.02,0.000252,31]
[367824387,1750937109554,-1946.02,0.000252,31]
[367824388,1750937109582,-1946.02,0.000252,31]
[367824389,1750937109612,-1946.02,0.000252,31]
[367824390,1750937109640,-1946.02,0.000252,31]
[367824391,1750937109669,-1946.02,0.000252,31]
[367824392,1750937109699,-1946.02,0.000252,31]
[367824393,1750937109727,-1946.02,0.000252,31]
[367824394,1750937109989,-1946.02,0.000252,31]
[367824395,1750937110023,-1946.02,0.000252,31]
[367824396,1750937110053,-1946.02,0.000252,31]
[367824397,1750937110081,-1946.02,0.000252,31]
[367824398,1750937110110,-1946.02,0.000252,31]
[367824399,1750937110139,-1946.02,0.000252,31]
[367824400,1750937110167,-1946.02,0.000252,31]
[367824401,1750937110195,-1946.02,0.000252,31]
[367824402,1750937110222,-1946.02,0.000252,31]
[367824403,1750937110248,-1946.02,0.000252,31]
[367824404,1750937110278,-1946.02,0.000252,31]
[367824405,1750937110308,-1946.02,0.000252,31]
[367824406,1750937110332,-500.0,0.00025205,30]
[367824407,1750937110356,-1530.4,0.0002531,60]
[367824408,1750937110380,-428775.07398798,0.0002533,30]
[367824409,1750937143055,-230.24506774,0.00025,30]
[367824410,1750937143082,-230.24506774,0.00025,30]
[367824411,1750937143118,-172032.36358087,0.0002533,30]
[367824412,1750937143143,-10000.0,0.00025545,60]
[367824413,1750937143167,-10000.0,0.00025545,60]
[367824414,1750937143191,-4188.0,0.0002557,30]
[367824415,1750937143216,-500.0,0.00025753,30]
[367824416,1750937143244,-1946.02,0.000259,31]
[367824417,1750937143271,-1946.02,0.000259,31]
[367824418,1750937143298,-1946.02,0.000259,31]
[367824419,1750937143324,-1946.02,0.000259,31]
[367824420,1750937143350,-1946.02,0.000259,31]
[367824421,1750937143376,-1946.02,0.000259,31]
[367824422,1750937143403,-1946.02,0.000259,31]
[367824423,1750937143430,-1946.02,0.000259,31]
[367824424,1750937143457,-1946.02,0.000259,31]
[367824425,1750937143485,-1946.02,0.000259,31]
[367824426,1750937143515,-1946.02,0.000259,31]
[367824427,1750937143543,-1946.02,0.000259,31]
[367824428,1750937143574,-1946.02,0.000259,31]
[367824429,1750937143603,-1946.02,0.000259,31]
[367824430,1750937143632,-1946.02,0.000259,31]
[367824431,1750937143660,-1946.02,0.000259,31]
[367824432,1750937143687,-1946.02,0.000259,31]
[367824433,1750937143714,-1946.02,0.000259,31]
[367824434,1750937143743,-1946.02,0.000259,31]
[367824435,1750937143771,-1946.02,0.000259,31]
[367824436,1750937143799,-1946.02,0.000259,31]
[367824437,1750937143827,-1946.02,0.000259,31]
[367824438,1750937143855,-1946.02,0.000259,31]
[367824439,1750937143883,-1946.02,0.000259,31]
[367824440,1750937143905,-10000.0,0.00026,60]
[367824441,1750937143929,-3000.0,0.00026,120]
[367824442,1750937143953,-160.0,0.00026,120]
[367824443,1750937143976,-10000.0,0.00026,120]
[367824444,1750937144000,-468.0,0.00026,120]
[367824445,1750937144024,-160.0,0.00026,120]
[367824446,1750937144048,-846.92323443,0.00026,30]
[367824447,1750937144072,-5369.72752065,0.00026148,60]
[367824448,1750937144095,-200.0,0.0002617,60]
[367824449,1750937144118,-626.0,0.00026175,60]
[367824450,1750937144142,-2000.0,0.0002618,60]
[367824451,1750937144166,-2000.0,0.000262,60]
[367824452,1750937144190,-500.0,0.00026204,30]
[367824453,1750937144214,-500.0,0.00026204,30]
[367824454,1750937144236,-256.0,0.00026222,60]
[367824455,1750937144260,-500.0,0.00026301,30]
[367824456,1750937144283,-10000.0,0.00026329,60]
[367824457,1750937144307,-500.0,0.00026508,30]
[367824458,1750937144329,-500.0,0.00026508,30]
[367824459,1750937144352,-500.0,0.00026508,30]
[367824460,1750937144376,-500.0,0.00026508,30]
[367824461,1750937144400,-500.0,0.00026508,30]
[367824462,1750937144423,-500.0,0.00026508,30]
[367824463,1750937144447,-500.0,0.00026508,30]
[367824464,1750937144472,-500.0,0.00026508,30]
[367824465,1750937144497,-500.0,0.00026508,30]
[367824466,1750937144527,-1946.02,0.000266,31]
[367824467,1750937144556,-1946.02,0.000266,31]
[367824468,1750937144585,-1946.02,0.000266,31]
[367824469,1750937144614,-1946.02,0.000266,31]
[367824470,1750937144643,-1946.02,0.000266,31]
[367824471,1750937144670,-1946.02,0.000266,31]
[367824472,1750937144697,-1946.02,0.000266,31]
[367824473,1750937144725,-1946.02,0.000266,31]
[367824474,1750937144758,-1946.02,0.000266,31]
[367824475,1750937144787,-1946.02,0.000266,31]
[367824476,1750937144815,-1946.02,0.000266,31]
[367824477,1750937144847,-1946.02,0.000266,31]
[367824478,1750937144871,-1100.0,0.00026712,120]
[367824479,1750937144894,-500.0,0.00026849,30]
[367824480,1750937144918,-1100.0,0.00026849,120]
[367824481,1750937144944,-1100.0,0.00026986,120]
[367824482,1750937144968,-3000.0,0.00027,120]
[367824483,1750937144992,-2817.56187883,0.00027,120]
[367824484,1750937145016,-1100.0,0.00027123,120]
[367824485,1750937145217,-1100.0,0.0002726,120]
[367824486,1750937145242,-500.0,0.00027397,30]
[367824487,1750937145265,-1100.0,0.00027397,120]
[367824488,1750937145291,-409.02738775,0.00027397,120]
[367824489,1750937145315,-861.543992,0.00027397,120]
[367824490,1750937145339,-822.76460168,0.000275,30]
[367824491,1750937145364,-200.0,0.000277,120]
[367824492,1750937145389,-500.0,0.00027945,30]
[367824493,1750937145412,-2000.0,0.00027945,120]
[367824494,1750937145436,-2000.0,0.00027945,120]
[367824495,1750937145461,-3000.0,0.00028,120]
[367824496,1750937145486,-500.0,0.00028493,30]
[367824497,1750937145510,-2000.0,0.00028493,120]
[367824498,1750937145534,-2000.0,0.00028493,120]
[367824499,1750937145560,-600.0,0.00029,120]
[367824500,1750937145585,-24937.06938936,0.00029,120]
[367824501,1750937145609,-500.0,0.00029,30]
[367824502,1750937145633,-160.0,0.00029,120]
[367824503,1750937145658,-151.0,0.00029014,30]
[367824504,1750937145682,-500.0,0.00029041,30]
[367824505,1750937145705,-2000.0,0.00029041,120]
[367824506,1750937145729,-2000.0,0.00029041,120]
[367824507,1750937145753,-151.0,0.00029082,30]
[367824508,1750937145777,-500.0,0.00029178,30]
[367824509,1750937145800,-5000.0,0.00029247,30]
[367824510,1750937145822,-200.0,0.000293,120]
[367824511,1750937145846,-5000.0,0.00029384,30]
[367824512,1750937145871,-500.0,0.00029466,30]